Workbook

Sheet Титульный лист

Sheet Лист1
A1: Задача1 (вариант 5)
A3: a | B3: b | C3: y(x)
A4: -1.976 | B4: 2.052
A6: Решение
A7: х | B7: у | C7: Функциональная зависимость
A8: -1.976 | B8: =IF(ABS(A8)>1,0,0.75*A8+(SIN(A8)/(A8^2-4))) -> 0
A9: -1.7746 | B9: 0
A10: -1.5732 | B10: 0
A11: -1.3718 | B11: 0
A12: -1.1704 | B12: 0
A13: -0.969 | B13: -0.4574558154
A14: -0.7676 | B14: =IF(ABS(A14)>1,0,0.75*A14+(SIN(A14)/(A14^2-4))) -> -0.3721078114
A15: -0.5662 | B15: -0.2788581925
A16: -0.3648 | B16: -0.1813399134
A17: -0.1634 | B17: -0.08160825534
A18: 0.038 | B18: 0.01899885626
A19: 0.2394 | B19: 0.1194083397
A20: 0.4408 | B20: 0.2184882597
A21: 0.6422 | B21: 0.3146965814
A22: 0.8436 | B22: 0.4055211274
A23: 1.045 | B23: 0
A24: 1.2464 | B24: 0
A25: 1.4478 | B25: 0
A26: 1.6492 | B26: 0
A27: 1.8506 | B27: 0
A28: 2.052 | B28: 0

Sheet Лист2
A1: Задача 2 (вариант 5)
A5: Решение
A6: х | B6: у | C6: Схематичный график функции
A7: -5 | B7: =A7^4+3*A7^3-4*A7-1 -> 269
A8: -4.55 | B8: =A8^4+3*A8^3-4*A8-1 -> 163.2043812
A9: -4.1 | B9: 91.2131
A10: -3.65 | B10: 45.20763125
A11: -3.2 | B11: 18.3536
A12: -2.75 | B12: 4.80078125
A13: -2.355674295 | B13: 5.926482416e-09
A14: -1.85 | B14: -0.88136875
A15: -1.477259996 | B15: 2.065675631e-09
A16: -0.95 | B16: 1.04238125
A17: -0.262359693 | B17: -6.136706032e-09
A18: -0.05 | B18: -0.80036875
A19: 0.4 | B19: -2.3824
A20: 1.095294711 | B20: 8.743901836e-06
A21: 1.3 | B21: 3.2471
A22: 1.75 | B22: 17.45703125
A23: 2.2 | B23: 45.5696
A24: 2.65 | B24: 93.54438125
A25: 3.1 | B25: 168.3251
A26: 3.55 | B26: 277.8396312
A27: 4 | B27: 431
A28: Примечание: в ячейках жёлтого цвета найдены корни уравнения f(x)=0

Sheet Лист3
A1: Задача3 (вариант5)
A5: Решение
C6: Ось Ох
C7: -1 | D7: -0.9 | E7: -0.8 | F7: -0.7 | G7: -0.6 | H7: -0.5 | I7: -0.4 | J7: -0.3 | K7: -0.2 | L7: -0.1 | M7: 0 | N7: 0.1 | O7: 0.2 | P7: 0.3 | Q7: 0.4 | R7: 0.5 | S7: 0.6 | T7: 0.7 | U7: 0.8 | V7: 0.9 | W7: 1
A8: Ось Оу | B8: -1 | C8: =IF(C$7<=0,C$7*SIN(PI()*$B8)^2,IF(C$7>0,$B8*SIN(PI()*C$7))) -> -1.500988737e-32 | D8: =IF(D$7<=0,D$7*SIN(PI()*$B8)^2,IF(D$7>0,$B8*SIN(PI()*D$7))) -> -1.350889863e-32 | E8: =IF(E$7<=0,E$7*SIN(PI()*$B8)^2,IF(E$7>0,$B8*SIN(PI()*E$7))) -> -1.200790989e-32 | F8: -1.050692116e-32 | G8: -9.005932419e-33 | H8: -7.504943683e-33 | I8: -6.003954946e-33 | J8: -4.50296621e-33 | K8: -3.001977473e-33 | L8: -1.500988737e-33 | M8: 0 | N8: -0.3090169944 | O8: -0.5877852523 | P8: -0.8090169944 | Q8: -0.9510565163 | R8: -1 | S8: -0.9510565163 | T8: -0.8090169944 | U8: -0.5877852523 | V8: -0.3090169944 | W8: -1.225148455e-16
B9: -0.9 | C9: =IF(C$7<=0,C$7*SIN(PI()*$B9)^2,IF(C$7>0,$B9*SIN(PI()*C$7))) -> -0.09549150281 | D9: =IF(D$7<=0,D$7*SIN(PI()*$B9)^2,IF(D$7>0,$B9*SIN(PI()*D$7))) -> -0.08594235253 | E9: -0.07639320225 | F9: -0.06684405197 | G9: -0.05729490169 | H9: -0.04774575141 | I9: -0.03819660113 | J9: -0.02864745084 | K9: -0.01909830056 | L9: -0.009549150281 | M9: 0 | N9: -0.2781152949 | O9: -0.5290067271 | P9: -0.7281152949 | Q9: -0.8559508647 | R9: -0.9 | S9: -0.8559508647 | T9: -0.7281152949 | U9: -0.5290067271 | V9: -0.2781152949 | W9: -1.102633609e-16
B10: -0.8 | C10: -0.3454915028 | D10: -0.3109423525 | E10: -0.2763932023 | F10: -0.241844052 | G10: -0.2072949017 | H10: -0.1727457514 | I10: -0.1381966011 | J10: -0.1036474508 | K10: -0.06909830056 | L10: -0.03454915028 | M10: 0 | N10: -0.2472135955 | O10: -0.4702282018 | P10: -0.6472135955 | Q10: -0.760845213 | R10: -0.8 | S10: -0.760845213 | T10: -0.6472135955 | U10: -0.4702282018 | V10: -0.2472135955 | W10: -9.801187639e-17
B11: -0.7 | C11: -0.6545084972 | D11: -0.5890576475 | E11: -0.5236067977 | F11: -0.458155948 | G11: -0.3927050983 | H11: -0.3272542486 | I11: -0.2618033989 | J11: -0.1963525492 | K11: -0.1309016994 | L11: -0.06545084972 | M11: 0 | N11: -0.2163118961 | O11: -0.4114496766 | P11: -0.5663118961 | Q11: -0.6657395614 | R11: -0.7 | S11: -0.6657395614 | T11: -0.5663118961 | U11: -0.4114496766 | V11: -0.2163118961 | W11: -8.576039184e-17
B12: -0.6 | C12: -0.9045084972 | D12: -0.8140576475 | E12: -0.7236067977 | F12: -0.633155948 | G12: -0.5427050983 | H12: -0.4522542486 | I12: -0.3618033989 | J12: -0.2713525492 | K12: -0.1809016994 | L12: -0.09045084972 | M12: 0 | N12: -0.1854101966 | O12: -0.3526711514 | P12: -0.4854101966 | Q12: -0.5706339098 | R12: -0.6 | S12: -0.5706339098 | T12: -0.4854101966 | U12: -0.3526711514 | V12: -0.1854101966 | W12: -7.350890729e-17
B13: -0.5 | C13: -1 | D13: -0.9 | E13: -0.8 | F13: -0.7 | G13: -0.6 | H13: -0.5 | I13: -0.4 | J13: -0.3 | K13: -0.2 | L13: -0.1 | M13: 0 | N13: -0.1545084972 | O13: -0.2938926261 | P13: -0.4045084972 | Q13: -0.4755282581 | R13: -0.5 | S13: -0.4755282581 | T13: -0.4045084972 | U13: -0.2938926261 | V13: -0.1545084972 | W13: -6.125742275e-17
B14: -0.4 | C14: -0.9045084972 | D14: -0.8140576475 | E14: -0.7236067977 | F14: -0.633155948 | G14: -0.5427050983 | H14: -0.4522542486 | I14: -0.3618033989 | J14: -0.2713525492 | K14: -0.1809016994 | L14: -0.09045084972 | M14: 0 | N14: -0.1236067977 | O14: -0.2351141009 | P14: -0.3236067977 | Q14: -0.3804226065 | R14: -0.4 | S14: -0.3804226065 | T14: -0.3236067977 | U14: -0.2351141009 | V14: -0.1236067977 | W14: -4.90059382e-17
B15: -0.3 | C15: -0.6545084972 | D15: -0.5890576475 | E15: -0.5236067977 | F15: -0.458155948 | G15: -0.3927050983 | H15: -0.3272542486 | I15: -0.2618033989 | J15: -0.1963525492 | K15: -0.1309016994 | L15: -0.06545084972 | M15: 0 | N15: -0.09270509831 | O15: -0.1763355757 | P15: -0.2427050983 | Q15: -0.2853169549 | R15: -0.3 | S15: -0.2853169549 | T15: -0.2427050983 | U15: -0.1763355757 | V15: -0.09270509831 | W15: -3.675445365e-17
B16: -0.2 | C16: -0.3454915028 | D16: -0.3109423525 | E16: -0.2763932023 | F16: -0.241844052 | G16: -0.2072949017 | H16: -0.1727457514 | I16: -0.1381966011 | J16: -0.1036474508 | K16: -0.06909830056 | L16: -0.03454915028 | M16: 0 | N16: -0.06180339887 | O16: -0.1175570505 | P16: -0.1618033989 | Q16: -0.1902113033 | R16: -0.2 | S16: -0.1902113033 | T16: -0.1618033989 | U16: -0.1175570505 | V16: -0.06180339887 | W16: -2.45029691e-17
B17: -0.1 | C17: -0.09549150281 | D17: -0.08594235253 | E17: -0.07639320225 | F17: -0.06684405197 | G17: -0.05729490169 | H17: -0.04774575141 | I17: -0.03819660113 | J17: -0.02864745084 | K17: -0.01909830056 | L17: -0.009549150281 | M17: 0 | N17: -0.03090169944 | O17: -0.05877852523 | P17: -0.08090169944 | Q17: -0.09510565163 | R17: -0.1 | S17: -0.09510565163 | T17: -0.08090169944 | U17: -0.05877852523 | V17: -0.03090169944 | W17: -1.225148455e-17
B18: 0 | C18: 0 | D18: 0 | E18: 0 | F18: 0 | G18: 0 | H18: 0 | I18: 0 | J18: 0 | K18: 0 | L18: 0 | M18: 0 | N18: 0 | O18: 0 | P18: 0 | Q18: 0 | R18: 0 | S18: 0 | T18: 0 | U18: 0 | V18: 0 | W18: 0
B19: 0.1 | C19: -0.09549150281 | D19: -0.08594235253 | E19: -0.07639320225 | F19: -0.06684405197 | G19: -0.05729490169 | H19: -0.04774575141 | I19: -0.03819660113 | J19: -0.02864745084 | K19: -0.01909830056 | L19: -0.009549150281 | M19: 0 | N19: 0.03090169944 | O19: 0.05877852523 | P19: 0.08090169944 | Q19: 0.09510565163 | R19: 0.1 | S19: 0.09510565163 | T19: 0.08090169944 | U19: 0.05877852523 | V19: 0.03090169944 | W19: 1.225148455e-17
B20: 0.2 | C20: -0.3454915028 | D20: -0.3109423525 | E20: -0.2763932023 | F20: -0.241844052 | G20: -0.2072949017 | H20: -0.1727457514 | I20: -0.1381966011 | J20: -0.1036474508 | K20: -0.06909830056 | L20: -0.03454915028 | M20: 0 | N20: 0.06180339887 | O20: 0.1175570505 | P20: 0.1618033989 | Q20: 0.1902113033 | R20: 0.2 | S20: 0.1902113033 | T20: 0.1618033989 | U20: 0.1175570505 | V20: 0.06180339887 | W20: 2.45029691e-17
B21: 0.3 | C21: -0.6545084972 | D21: -0.5890576475 | E21: -0.5236067977 | F21: -0.458155948 | G21: -0.3927050983 | H21: -0.3272542486 | I21: -0.2618033989 | J21: -0.1963525492 | K21: -0.1309016994 | L21: -0.06545084972 | M21: 0 | N21: =IF(N$7<=0,N$7*SIN(PI()*$B21)^2,IF(N$7>0,$B21*SIN(PI()*N$7))) -> 0.09270509831 | O21: 0.1763355757 | P21: 0.2427050983 | Q21: 0.2853169549 | R21: 0.3 | S21: 0.2853169549 | T21: 0.2427050983 | U21: 0.1763355757 | V21: 0.09270509831 | W21: 3.675445365e-17
B22: 0.4 | C22: -0.9045084972 | D22: -0.8140576475 | E22: -0.7236067977 | F22: -0.633155948 | G22: -0.5427050983 | H22: -0.4522542486 | I22: -0.3618033989 | J22: -0.2713525492 | K22: -0.1809016994 | L22: -0.09045084972 | M22: 0 | N22: 0.1236067977 | O22: 0.2351141009 | P22: 0.3236067977 | Q22: 0.3804226065 | R22: 0.4 | S22: 0.3804226065 | T22: 0.3236067977 | U22: 0.2351141009 | V22: 0.1236067977 | W22: 4.90059382e-17
B23: 0.5 | C23: -1 | D23: -0.9 | E23: -0.8 | F23: -0.7 | G23: -0.6 | H23: -0.5 | I23: -0.4 | J23: -0.3 | K23: -0.2 | L23: -0.1 | M23: 0 | N23: 0.1545084972 | O23: 0.2938926261 | P23: 0.4045084972 | Q23: 0.4755282581 | R23: 0.5 | S23: 0.4755282581 | T23: 0.4045084972 | U23: 0.2938926261 | V23: 0.1545084972 | W23: 6.125742275e-17
B24: 0.6 | C24: -0.9045084972 | D24: -0.8140576475 | E24: -0.7236067977 | F24: -0.633155948 | G24: -0.5427050983 | H24: -0.4522542486 | I24: -0.3618033989 | J24: -0.2713525492 | K24: -0.1809016994 | L24: -0.09045084972 | M24: 0 | N24: 0.1854101966 | O24: 0.3526711514 | P24: 0.4854101966 | Q24: 0.5706339098 | R24: 0.6 | S24: 0.5706339098 | T24: 0.4854101966 | U24: 0.3526711514 | V24: 0.1854101966 | W24: 7.350890729e-17
B25: 0.7 | C25: -0.6545084972 | D25: -0.5890576475 | E25: -0.5236067977 | F25: -0.458155948 | G25: -0.3927050983 | H25: -0.3272542486 | I25: -0.2618033989 | J25: -0.1963525492 | K25: -0.1309016994 | L25: -0.06545084972 | M25: 0 | N25: 0.2163118961 | O25: 0.4114496766 | P25: 0.5663118961 | Q25: 0.6657395614 | R25: 0.7 | S25: 0.6657395614 | T25: 0.5663118961 | U25: 0.4114496766 | V25: 0.2163118961 | W25: 8.576039184e-17
B26: 0.8 | C26: -0.3454915028 | D26: -0.3109423525 | E26: -0.2763932023 | F26: -0.241844052 | G26: -0.2072949017 | H26: -0.1727457514 | I26: -0.1381966011 | J26: -0.1036474508 | K26: -0.06909830056 | L26: -0.03454915028 | M26: 0 | N26: 0.2472135955 | O26: 0.4702282018 | P26: 0.6472135955 | Q26: 0.760845213 | R26: 0.8 | S26: 0.760845213 | T26: 0.6472135955 | U26: 0.4702282018 | V26: 0.2472135955 | W26: 9.801187639e-17
B27: 0.9 | C27: -0.09549150281 | D27: -0.08594235253 | E27: -0.07639320225 | F27: -0.06684405197 | G27: -0.05729490169 | H27: -0.04774575141 | I27: -0.03819660113 | J27: -0.02864745084 | K27: -0.01909830056 | L27: -0.009549150281 | M27: 0 | N27: 0.2781152949 | O27: 0.5290067271 | P27: 0.7281152949 | Q27: 0.8559508647 | R27: 0.9 | S27: 0.8559508647 | T27: 0.7281152949 | U27: 0.5290067271 | V27: 0.2781152949 | W27: 1.102633609e-16
B28: 1 | C28: -1.500988737e-32 | D28: -1.350889863e-32 | E28: -1.200790989e-32 | F28: -1.050692116e-32 | G28: -9.005932419e-33 | H28: -7.504943683e-33 | I28: -6.003954946e-33 | J28: -4.50296621e-33 | K28: -3.001977473e-33 | L28: -1.500988737e-33 | M28: 0 | N28: 0.3090169944 | O28: 0.5877852523 | P28: 0.8090169944 | Q28: 0.9510565163 | R28: 1 | S28: 0.9510565163 | T28: 0.8090169944 | U28: 0.5877852523 | V28: 0.3090169944 | W28: 1.225148455e-16

Sheet Лист4
A1: Задача 4 (вариант 5)
A4: Решение
D5: Склады
D6: S1 | F6: S2 | H6: S3 | J6: S4 | L6: S5 | N6: Всего
D7: 150 | F7: 220 | H7: 340 | J7: 180 | L7: 200 | N7: 1090
D8: План | E8: Цена 1 т. | F8: План | G8: Цена 1 т. | H8: План | I8: Цена 1 т. | J8: План | K8: Цена 1 т. | L8: План | M8: Цена 1 т.
A9: Предприятия | B9: P1 | C9: 110 | D9: 0 | E9: 24 | F9: 0 | G9: 20 | H9: 0 | I9: 16 | J9: 0 | K9: 18 | L9: 0 | M9: 20 | N9: Итого по предприятиям | O9: Всего,тонн | Q9: =D9+F9+H9+J9+L9 -> 0
B10: P2 | C10: 90 | D10: 0 | E10: 16 | F10: 0 | G10: 14 | H10: 0 | I10: 13 | J10: 0 | K10: 13 | L10: 0 | M10: 15 | O10: Всего,тонн | Q10: =D10+F10+H10+J10+L10 -> 0
B11: P3 | C11: 150 | D11: 0 | E11: 13 | F11: 0 | G11: 14 | H11: 0 | I11: 19 | J11: 0 | K11: 11 | L11: 0 | M11: 18 | O11: Всего,тонн | Q11: 0
B12: P4 | C12: 105 | D12: 50 | E12: 11 | F12: 0 | G12: 13 | H12: 0 | I12: 15 | J12: 0 | K12: 11 | L12: 0 | M12: 13 | O12: Всего,тонн | Q12: 50
B13: P5 | C13: 115 | D13: 50 | E13: 11 | F13: 0 | G13: 20 | H13: 0 | I13: 12 | J13: 180 | K13: 10 | L13: 0 | M13: 18 | O13: Всего,тонн | Q13: 230
B14: P6 | C14: 175 | D14: 0 | E14: 18 | F14: 143 | G14: 10 | H14: 340 | I14: 10 | J14: 0 | K14: 17 | L14: 0 | M14: 13 | O14: Всего,тонн | Q14: 483
B15: P7 | C15: 160 | D15: 0 | E15: 18 | F15: 0 | G15: 11 | H15: 0 | I15: 13 | J15: 0 | K15: 16 | L15: 200 | M15: 11 | O15: Всего,тонн | Q15: 200
B16: P8 | C16: 185 | D16: 50 | E16: 11 | F16: 76.999999 | G16: 10 | H16: 0 | I16: 20 | J16: 0 | K16: 11 | L16: 0 | M16: 16 | O16: Всего,тонн | Q16: 126.999999
A17: Всего | C17: 1090 | D17: Итого по складам
D18: Всего, тонн | E18: Всего, стоимость | F18: Всего, тонн | G18: Всего, стоимость | H18: Всего, тонн | I18: Всего, стоимость | J18: Всего, тонн | K18: Всего, стоимость | L18: Всего, тонн | M18: Всего, стоимость | N18: Общая стоимость перевозок
D19: =SUM(D9:D16) -> 150 | E19: =SUMPRODUCT(D9:D16,E9:E16) -> 1650 | F19: =SUM(F9:F16) -> 219.999999 | G19: =SUMPRODUCT(F9:F16,G9:G16) -> 2199.99999 | H19: =SUM(H9:H16) -> 340 | I19: =SUMPRODUCT(H9:H16,I9:I16) -> 3400 | J19: =SUM(J9:J16) -> 180 | K19: =SUMPRODUCT(J9:J16,K9:K16) -> 1800 | L19: =SUM(L9:L16) -> 200 | M19: =SUMPRODUCT(L9:L16,M9:M16) -> 2200 | N19: =E19+G19+I19+K19+M19 -> 11249.99999

Sheet Лист5
A1: Задача 5 (вариант 5)
A4: Решение
E5: Виды сырья | F5: С1 | H5: С2 | J5: С3 | L5: С4
E6: Запасы сырья | F6: 210 | H6: 160 | J6: 185 | L6: 190
A7: Виды продукции | B7: Доходы от реализации 1 единицы продукции | C7: Доходы от реализации продукции | D7: Количество произведённой продукции | F7: Затраты сырья 1-го типа для производства продукции | G7: Затраты сырья 1-го типа для производства 1 единицы продукции | H7: Затраты сырья 2-го типа для производства продукции | I7: Затраты сырья 2-го типа для производства 1 единицы продукции | J7: Затраты сырья 3-го типа для производства продукции | K7: Затраты сырья 3-го типа для производства 1 единицы продукции | L7: Затраты сырья 4-го типа для производства продукции | M7: Затраты сырья 4-го типа для производства 1 единицы продукции
A8: П1 | B8: 90 | C8: =B8*D8 -> 0 | D8: 0 | F8: =D8*G8 -> 0 | G8: 9 | H8: =D8*I8 -> 0 | I8: 8 | J8: =D8*K8 -> 0 | K8: 7 | L8: =D8*M8 -> 0 | M8: 6
A9: П2 | B9: 110 | C9: =B9*D9 -> 2200 | D9: 20 | F9: =D9*G9 -> 100 | G9: 5 | H9: =D9*I9 -> 160 | I9: 8 | J9: =D9*K9 -> 180 | K9: 9 | L9: =D9*M9 -> 120 | M9: 6
A10: П3 | B10: 130 | C10: =B10*D10 -> 0 | D10: 0 | F10: =D10*G10 -> 0 | G10: 12 | H10: =D10*I10 -> 0 | I10: 10 | J10: =D10*K10 -> 0 | K10: 11 | L10: =D10*M10 -> 0 | M10: 9
B12: Суммарный доход | C12: =SUM(C8:C10) -> 2200 | E12: Суммарные затраты сырья 1-го типа для производства продукции | F12: =SUM(F8:F10) -> 100 | G12: Суммарные затраты сырья 2-го типа для производства продукции | H12: =SUM(H8:H10) -> 160 | I12: Суммарные затраты сырья 3-го типа для производства продукции | J12: =SUM(J8:J10) -> 180 | K12: Суммарные затраты сырья 4-го типа для производства продукции | L12: =SUM(L8:L10) -> 120
